fUSD/lending_fUSD_20260617
["ID","MTS","AMOUNT","RATE_DAILY","PERIOD"]
[425338359,1781699444000,-633.20783737,0.00029693,7]
[425338361,1781699444000,-712.4744517,0.00029693,7]
[425338347,1781699444000,-1202.14,0.00029589,2]
[425338336,1781699444000,-2632.1,0.00029475,7]
[425338350,1781699444000,-430.81621874,0.00029612,2]
[425338333,1781699444000,-301.56,0.00029425,2]
[425338334,1781699444000,-505.0,0.00029446,12]
[425338309,1781699444000,-230.68835716,0.0002913,7]
[425338310,1781699444000,-214.25531322,0.0002913,7]
[425338311,1781699444000,-193.2779557,0.0002913,7]
[425338313,1781699444000,-247.29295381,0.0002913,7]
[425338312,1781699444000,-175.04625116,0.0002913,7]
[425338315,1781699444000,-230.95331308,0.0002913,7]
[425338317,1781699444000,-362.88,0.00029212,14]
[425338318,1781699444000,-296.49,0.0002927,2]
[425338319,1781699444000,-500.0,0.00029299,120]
[425338320,1781699444000,-1770.06,0.0002932,30]
[425338322,1781699444000,-1770.06,0.0002932,2]
[425338316,1781699444000,-12841.5834308,0.00029206,2]
[425338328,1781699444000,-1770.06,0.0002932,2]
[425338335,1781699444000,-2632.1,0.00029475,30]
[425338321,1781699444000,-1770.06,0.0002932,7]
[425338332,1781699444000,-1371.8,0.000294,7]
[425338331,1781699444000,-1688.77,0.000294,7]
[425338329,1781699444000,-1770.09,0.0002932,30]
[425338330,1781699444000,-150.0,0.00029372,2]
[425338325,1781699444000,-1770.06,0.0002932,2]
[425338323,1781699444000,-1770.06,0.0002932,30]
[425338324,1781699444000,-1770.06,0.0002932,7]
[425338326,1781699444000,-1770.06,0.0002932,30]
[425338327,1781699444000,-1770.06,0.0002932,7]
[425338399,1781699445000,-233.97262355,0.00029698,7]
[425338409,1781699445000,-498.44971249,0.00029698,7]
[425338407,1781699445000,-466.04692639,0.00029698,7]
[425338406,1781699445000,-165.49040856,0.00029698,2]
[425338398,1781699445000,-174.08276585,0.00029698,7]
[425338392,1781699445000,-563.54734855,0.00029698,7]
[425338393,1781699445000,-446.69324162,0.00029698,7]
[425338397,1781699445000,-405.39963185,0.00029698,7]
[425338388,1781699445000,-424.25142858,0.00029698,7]
[425338408,1781699445000,-464.02589543,0.00029698,7]
[425338395,1781699445000,-491.24072961,0.00029698,7]
[425338403,1781699445000,-450.95100998,0.00029698,7]
[425338418,1781699445000,-498.83860868,0.00029698,2]
[425338402,1781699445000,-247.21875952,0.00029698,7]
[425338404,1781699445000,-226.39028697,0.00029698,7]
[425338401,1781699445000,-426.66196277,0.00029698,7]
[425338400,1781699445000,-436.20913464,0.00029698,7]
[425338413,1781699445000,-331.42584623,0.00029698,7]
[425338412,1781699445000,-435.49869073,0.00029698,7]
[425338410,1781699445000,-451.59264128,0.00029698,7]
[425338414,1781699445000,-201.37116919,0.00029698,7]
[425338416,1781699445000,-452.79528203,0.00029698,2]
[425338411,1781699445000,-311.31878383,0.00029698,7]
[425338415,1781699445000,-437.39317523,0.00029698,7]
[425338387,1781699445000,-229.71518198,0.00029698,7]
[425338405,1781699445000,-377.62593374,0.00029698,7]
[425338396,1781699445000,-165.64447569,0.00029698,7]
[425338417,1781699445000,-178.6763225,0.00029698,2]
[425338391,1781699445000,-472.33858618,0.00029698,7]
[425338362,1781699445000,-447.35888299,0.00029695,7]
[425338363,1781699445000,-738.69528835,0.00029695,7]
[425338365,1781699445000,-677.14474356,0.00029695,7]
[425338366,1781699445000,-715.95659512,0.00029695,2]
[425338367,1781699445000,-688.88465292,0.00029695,7]
[425338371,1781699445000,-637.67947365,0.00029695,7]
[425338369,1781699445000,-731.28120125,0.00029695,7]
[425338370,1781699445000,-809.91734291,0.00029695,7]
[425338374,1781699445000,-222.28804575,0.00029698,7]
[425338364,1781699445000,-633.33879631,0.00029695,7]
[425338368,1781699445000,-637.96843191,0.00029695,7]
[425338373,1781699445000,-245.70421563,0.00029698,7]
[425338390,1781699445000,-418.8938871,0.00029698,7]
[425338372,1781699445000,-694.02978682,0.00029695,7]
[425338384,1781699445000,-203.18865755,0.00029698,7]
[425338375,1781699445000,-156.96589794,0.00029698,7]
[425338376,1781699445000,-623.75017804,0.00029698,7]
[425338380,1781699445000,-453.78845357,0.00029698,7]
[425338379,1781699445000,-161.17536081,0.00029698,7]
[425338383,1781699445000,-420.99143257,0.00029698,7]
[425338377,1781699445000,-265.84282166,0.00029698,7]
[425338385,1781699445000,-448.97789428,0.00029698,7]
[425338378,1781699445000,-336.22379329,0.00029698,7]
[425338389,1781699445000,-438.80987166,0.00029698,7]
[425338386,1781699445000,-429.70904658,0.00029698,7]
[425338394,1781699445000,-457.21643915,0.00029698,7]
[425338381,1781699445000,-237.47866217,0.00029698,7]
[425338420,1781699445000,-450.86236193,0.00029698,2]
[425338382,1781699445000,-405.25800553,0.00029698,7]
[425338422,1781699445000,-468.43447595,0.00029698,7]
[425338451,1781699445000,-350.0,0.00029726,14]
[425338450,1781699445000,-26864.43140295,0.00029703,7]
[425338475,1781699445000,-150.0,0.00029959,30]
[425338452,1781699445000,-250.0,0.00029726,14]
[425338454,1781699445000,-745.15,0.00029792,120]
[425338456,1781699445000,-3146.116858,0.00029793,2]
[425338458,1781699445000,-200.0,0.00029859,2]
[425338462,1781699445000,-1491.51713354,0.000299,2]
[425338460,1781699445000,-1688.77,0.000299,7]
[425338463,1781699445000,-1491.51713341,0.000299,2]
[425338457,1781699445000,-682.72,0.00029828,8]
[425338467,1781699445000,-1491.51713341,0.000299,2]
[425338453,1781699445000,-500.0,0.00029792,120]
[425338461,1781699445000,-1371.8,0.000299,7]
[425338465,1781699445000,-1491.51713341,0.000299,2]
[425338464,1781699445000,-1491.51713341,0.000299,2]
[425338468,1781699445000,-1491.51713341,0.000299,2]
[425338473,1781699445000,-157.0,0.00029956,30]
[425338474,1781699445000,-155.0,0.00029959,30]
[425338472,1781699445000,-292.0,0.00029956,30]
[425338479,1781699445000,-150.0,0.00029959,30]
[425338471,1781699445000,-152.0,0.00029956,30]
[425338477,1781699445000,-150.0,0.00029959,30]
[425338478,1781699445000,-150.0,0.00029959,30]
[425338470,1781699445000,-1491.51713341,0.000299,2]
[425338419,1781699445000,-410.45976411,0.00029698,7]
[425338459,1781699445000,-500.0,0.00029899,2]
[425338449,1781699445000,-304.16737871,0.00029699,7]
[425338466,1781699445000,-1491.51713341,0.000299,2]
[425338455,1781699445000,-19674.9187509,0.00029793,2]
[425338448,1781699445000,-159.67155246,0.00029699,7]
[425338423,1781699445000,-441.74981821,0.00029699,7]
[425338421,1781699445000,-227.38575425,0.00029698,7]
[425338432,1781699445000,-159.98959902,0.00029699,2]
[425338424,1781699445000,-472.03898078,0.00029699,7]
[425338426,1781699445000,-427.45002542,0.00029699,7]
[425338427,1781699445000,-426.30980553,0.00029699,7]
[425338428,1781699445000,-461.37671432,0.00029699,7]
[425338431,1781699445000,-151.22218563,0.00029699,7]
[425338429,1781699445000,-428.51062644,0.00029699,7]
[425338430,1781699445000,-232.87883147,0.00029699,7]
[425338433,1781699445000,-300.79079754,0.00029699,7]
[425338434,1781699445000,-429.30944176,0.00029699,7]
[425338425,1781699445000,-407.91833247,0.00029699,7]
[425338435,1781699445000,-433.37372534,0.00029699,7]
[425338445,1781699445000,-458.43204737,0.00029699,7]
[425338441,1781699445000,-386.55591139,0.00029699,7]
[425338447,1781699445000,-159.94155698,0.00029699,7]
[425338446,1781699445000,-461.90662617,0.00029699,7]
[425338444,1781699445000,-494.58590763,0.00029699,7]
[425338440,1781699445000,-412.98139069,0.00029699,7]
[425338439,1781699445000,-446.36171057,0.00029699,7]
[425338442,1781699445000,-160.3876876,0.00029699,7]
[425338438,1781699445000,-472.79162143,0.00029699,5]
[425338437,1781699445000,-388.94952594,0.00029699,7]
[425338443,1781699445000,-350.09250233,0.00029699,7]
[425338436,1781699445000,-427.75422277,0.00029699,5]
[425338500,1781699446000,-2499.99,0.0003,2]
[425338503,1781699446000,-688.34683283,0.0003,7]
[425338497,1781699446000,-273.0,0.00029986,2]
[425338501,1781699446000,-2500.0,0.0003,2]
[425338496,1781699446000,-601.40797481,0.00029962,2]
[425338502,1781699446000,-688.34683283,0.0003,7]
[425338508,1781699446000,-151.0,0.00030025,2]
[425338517,1781699446000,-150.0,0.00030058,30]
[425338515,1781699446000,-2048.366,0.0003003,2]
[425338513,1781699446000,-439.96693988,0.0003003,2]
[425338507,1781699446000,-150.0,0.00030012,30]
[425338512,1781699446000,-210.01209059,0.0003003,2]
[425338499,1781699446000,-150.0,0.00029995,30]
[425338510,1781699446000,-150.0,0.00030028,30]
[425338506,1781699446000,-150.0,0.00030009,30]
[425338498,1781699446000,-429.76582013,0.00029993,30]
[425338487,1781699446000,-151.0,0.00029959,30]
[425338493,1781699446000,-155.0,0.00029959,30]
[425338516,1781699446000,-150.0,0.0003003,30]
[425338480,1781699446000,-150.0,0.00029959,30]
[425338481,1781699446000,-150.0,0.00029959,30]
[425338485,1781699446000,-578.49,0.00029959,7]
[425338482,1781699446000,-150.0,0.00029959,30]
[425338484,1781699446000,-150.0,0.00029959,30]
[425338488,1781699446000,-182.0,0.00029959,30]
[425338483,1781699446000,-429.76582013,0.00029959,30]
[425338492,1781699446000,-182.0,0.00029959,30]
[425338486,1781699446000,-1225.52,0.00029959,7]
[425338489,1781699446000,-413.0,0.00029959,30]
[425338491,1781699446000,-153.0,0.00029959,30]
[425338494,1781699446000,-152.0,0.00029959,30]
[425338504,1781699446000,-2500.0,0.0003,2]
[425338505,1781699446000,-5528.0,0.0003,3]
[425338495,1781699446000,-305.0,0.00029959,30]
[425338509,1781699446000,-429.76582013,0.00030026,30]
[425338490,1781699446000,-153.0,0.00029959,30]
[425338514,1781699446000,-300.55792103,0.0003003,2]
[425338539,1781699446000,-745.15,0.00030129,120]
[425338537,1781699446000,-745.15,0.00030129,120]
[425338538,1781699446000,-745.15,0.00030129,120]
[425338541,1781699446000,-745.15,0.00030129,120]
[425338540,1781699446000,-745.15,0.00030129,120]
[425338543,1781699446000,-745.15,0.00030129,120]
[425338542,1781699446000,-745.15,0.00030129,120]
[425338544,1781699446000,-500.0,0.00030129,2]
[425338546,1781699446000,-500.0,0.00030129,2]
[425338545,1781699446000,-500.0,0.00030129,2]
[425338552,1781699446000,-698628.83149796,0.0003013,7]
[425338547,1781699446000,-500.0,0.00030129,2]
[425338551,1781699446000,-238.84,0.00030129,120]
[425338549,1781699446000,-500.0,0.00030129,2]
[425338550,1781699446000,-500.0,0.00030129,2]
[425338534,1781699446000,-151.0,0.00030127,7]
[425338548,1781699446000,-500.0,0.00030129,2]
[425338536,1781699446000,-392.13830426,0.00030129,120]
[425338533,1781699446000,-151.0,0.00030127,7]
[425338519,1781699446000,-150.0,0.00030065,30]
[425338528,1781699446000,-64757.0,0.0003011,2]
[425338529,1781699446000,-150.0,0.00030117,30]
[425338527,1781699446000,-500.0,0.00030109,120]
[425338522,1781699446000,-429.76582013,0.00030093,30]
[425338521,1781699446000,-160.0,0.00030086,3]
[425338520,1781699446000,-150.0,0.00030066,30]
[425338518,1781699446000,-429.76582013,0.0003006,30]
[425338523,1781699446000,-150.0,0.00030098,30]
[425338524,1781699446000,-150.0,0.000301,10]
[425338525,1781699446000,-150.0,0.00030102,30]
[425338526,1781699446000,-150.0,0.00030108,30]
[425338530,1781699446000,-277.01729798,0.0003012,2]
[425338532,1781699446000,-151.0,0.00030127,7]
[425338535,1781699446000,-300.0,0.00030129,10]
[425338531,1781699446000,-429.76582013,0.00030127,30]
[425338511,1781699446000,-413.55633046,0.0003003,2]
[425338553,1781699447000,-4497.44845076,0.0003013,7]
[425338554,1781699447000,-672.58096363,0.0003013,7]
[425338565,1781699448000,-1098.51884115,0.000299,2]
[425338555,1781699448000,-4032.207883,0.0003013,7]
[425338556,1781699448000,-828.31462486,0.0003013,7]
[425338558,1781699448000,-9940.08511662,0.0003013,7]
[425338559,1781699448000,-533.0,0.00024222,2]
[425338561,1781699448000,-171.14259138,0.00028726,7]
[425338560,1781699448000,-328.85740862,0.00024222,2]
[425338557,1781699448000,-592.27,0.00028726,7]
[425338568,1781699448000,-3833.94182832,0.0003013,7]
[425338564,1781699448000,-352.89740862,0.00028726,7]
[425338563,1781699448000,-239.37259138,0.00028726,7]
[425338566,1781699448000,-392.99829226,0.000299,2]
[425338567,1781699448000,-18815.01559615,0.0003013,7]
[425338562,1781699448000,-421.12740862,0.00028726,7]
[425338569,1781699448000,-10855.09016133,0.0003013,7]
[425338585,1781699449000,-467.99153323,0.00028777,2]
[425338586,1781699449000,-741.67,0.00028802,30]
[425338587,1781699449000,-560.19,0.00028809,30]
[425338588,1781699449000,-145.57124409,0.00028835,7]
[425338590,1781699449000,-396.18161387,0.00028726,7]
[425338591,1781699449000,-196.08838613,0.00028726,7]
[425338592,1781699449000,-337.91161277,0.00028835,7]
[425338583,1781699449000,-432.60653322,0.00028769,2]
[425338589,1781699449000,-250.0,0.00017971,2]
[425338584,1781699449000,-92.19846677,0.00028777,2]
[425338574,1781699449000,-741.67,0.00028704,30]
[425338580,1781699449000,-741.67,0.00028736,7]
[425338578,1781699449000,-592.27,0.00028726,7]
[425338579,1781699449000,-592.27,0.00028726,7]
[425338575,1781699449000,-560.19,0.00028714,30]
[425338577,1781699449000,-592.27,0.00028726,7]
[425338576,1781699449000,-592.27,0.00028726,7]
[425338572,1781699449000,-5347.71,0.00019096,2]
[425338573,1781699449000,-861.85740862,0.00025505,2]
[425338581,1781699449000,-560.19,0.00028745,7]
[425338582,1781699449000,-309.06346678,0.00028769,2]
[425338595,1781699449000,-741.67,0.00028868,2]
[425338593,1781699449000,-258.18714314,0.00028835,7]
[425338599,1781699449000,-560.19,0.00028904,30]
[425338616,1781699449000,-276.71800101,0.0003013,7]
[425338617,1781699449000,-605.06969789,0.0003013,7]
[425338614,1781699449000,-71731.40489115,0.0003013,7]
[425338612,1781699449000,-208124.8188498,0.0003013,7]
[425338613,1781699449000,-1840.84944306,0.0003013,7]
[425338611,1781699449000,-236779.23348675,0.0003013,7]
[425338609,1781699449000,-1491.51713341,0.000299,2]
[425338610,1781699449000,-234.44203426,0.00030129,2]
[425338605,1781699449000,-4241.11,0.00029179,7]
[425338608,1781699449000,-3606.5485299,0.00029179,30]
[425338615,1781699449000,-256.95,0.00028508,2]
[425338607,1781699449000,-634.5614701,0.00029179,30]
[425338606,1781699449000,-4241.11,0.00029179,2]
[425338600,1781699449000,-741.67,0.00028934,7]
[425338594,1781699449000,-560.19,0.00028841,7]
[425338596,1781699449000,-181.47024248,0.00028872,2]
[425338597,1781699449000,-378.71975752,0.00028872,2]
[425338602,1781699449000,-741.67,0.00028967,2]
[425338598,1781699449000,-741.67,0.00028901,30]
[425338601,1781699449000,-560.19,0.00028936,7]
[425338603,1781699449000,-560.19,0.00028968,2]
[425338604,1781699449000,-4241.11,0.00029179,30]
[425338618,1781699450000,-2380.0,0.0003013,7]
[425338619,1781699469000,563.79999884,0.00013698,2]
[425338621,1781699537000,563.79999819,0.00013698,2]
[425338622,1781699605000,563.79666542,0.00013698,2]
[425338637,1781699673000,563.7900031,0.00013698,2]
[425338639,1781699739000,-2500.0,0.00027092,120]
[425338638,1781699739000,-423.67071605,0.0001503,2]
[425338645,1781699740000,-1005.51,0.00029299,120]
[425338644,1781699740000,-277.17960336,0.00028057,120]
[425338643,1781699740000,-500.0,0.00028057,120]
[425338642,1781699740000,-1005.51,0.00028057,120]
[425338641,1781699740000,-1752.17213764,0.00027854,120]
[425338640,1781699740000,-2500.0,0.00027854,120]
[425338648,1781699741000,-1005.51,0.00030109,120]
[425338646,1781699741000,-2500.0,0.00029466,120]
[425338647,1781699741000,-500.0,0.00029792,120]
[425338649,1781699741000,-1005.51,0.00030129,120]
[425338651,1781699741000,-1005.51,0.00030129,120]
[425338653,1781699741000,-1005.51,0.00030129,120]
[425338650,1781699741000,-1005.51,0.00030129,120]
[425338652,1781699741000,-1005.51,0.00030129,120]
[425338660,1781699742000,-500.0,0.00030129,120]
[425338655,1781699742000,-500.0,0.00030129,120]
[425338656,1781699742000,-500.0,0.00030129,120]
[425338654,1781699742000,-1005.51,0.00030129,120]
[425338658,1781699742000,-500.0,0.00030129,120]
[425338659,1781699742000,-500.0,0.00030129,120]
[425338657,1781699742000,-500.0,0.00030129,120]
[425338661,1781699743000,-500.0,0.00030129,120]
[425338662,1781699793000,-153.0,0.000172,2]
[425338664,1781699794000,272.42,0.00029414,120]
[425338663,1781699794000,272.42,0.0002674,120]
[425338665,1781699846000,-150.0,0.000172,2]
[425338667,1781699900000,152.0,0.0003013,120]
[425338666,1781699900000,-152.0,0.000172,2]
[425338669,1781699953000,-309.0,0.000172,2]
[425338670,1781699973000,251.77,0.0003,120]
[425338671,1781700007000,-301.77,0.0001601,2]
[425338673,1781700060000,-150.0,0.00016294,2]
[425338674,1781700113000,-150.0,0.00016294,2]
[425338675,1781700114000,500.0,0.00030129,120]
[425338676,1781700115000,500.0,0.00030129,120]
[425338677,1781700167000,-151.0,0.00016294,2]
[425338678,1781700220000,-150.0,0.00016294,2]
[425338679,1781700221000,152.94377145,0.0003,120]
[425338680,1781700273000,500.0,0.00030129,120]
[425338681,1781700289000,1007.02,0.00029452,120]
[425338686,1781700342000,238.84,0.00030129,120]
[425338687,1781700403000,628.44,0.00030129,120]
[425338688,1781700403000,628.44,0.00030129,120]
[425338689,1781700443000,-151.0,0.00015108,2]
[425338690,1781700443000,-250.0,0.000157,2]
[425338696,1781700444000,-152.0,0.00016294,2]
[425338691,1781700444000,-550.0,0.00016293,2]
[425338692,1781700444000,-151.0,0.00016294,2]
[425338695,1781700444000,-150.0,0.00016294,2]
[425338694,1781700444000,-151.0,0.00016294,2]
[425338698,1781700444000,-312.0,0.00016294,2]
[425338697,1781700444000,-319.0,0.00016294,2]
[425338699,1781700444000,-196.74349495,0.00016294,2]
[425338693,1781700444000,-150.0,0.00016294,2]
[425338700,1781700464000,-120.25650505,0.00016294,2]
[425338701,1781700497000,-151.0,0.00016294,2]
[425338702,1781700517000,-321.0,0.00016293,2]
[425338703,1781700567000,-179.0,0.00016293,2]
[425338705,1781700568000,500.0,0.00030129,120]
[425338704,1781700568000,500.0,0.00030129,120]
[425338706,1781700570000,-179.0,0.00016293,2]
[425338707,1781700604000,-321.0,0.00016293,2]
[425338708,1781700625000,-500.0,0.00016293,2]
[425339360,1781700661000,-312.0,0.00016293,2]
[425339359,1781700661000,-620.8264152,0.00016293,2]
[425339399,1781700662000,-314.0,0.000172,2]
[425339407,1781700662000,-152.0,0.000172,2]
[425339409,1781700662000,-5.27129181,0.000172,2]
[425339403,1781700662000,-313.0,0.000172,2]
[425339404,1781700662000,-150.0,0.000172,2]
[425339401,1781700662000,-318.0,0.000172,2]
[425339382,1781700662000,-500.0,0.00016438,2]
[425339400,1781700662000,-152.0,0.000172,2]
[425339393,1781700662000,-238.35403639,0.00017199,2]
[425339388,1781700662000,-175.70059123,0.00017199,2]
[425339395,1781700662000,-500.0,0.00017199,2]
[425339391,1781700662000,-500.0,0.00017199,2]
[425339398,1781700662000,-286.48674567,0.00017199,2]
[425339402,1781700662000,-311.0,0.000172,2]
[425339418,1781700662000,-315.0,0.000172,2]
[425339408,1781700662000,-305.72870819,0.000172,2]
[425339406,1781700662000,-317.0,0.000172,2]
[425339410,1781700662000,-309.0,0.000172,2]
[425339417,1781700662000,-316.0,0.000172,2]
[425339421,1781700662000,-313.0,0.000172,2]
[425339390,1781700662000,-500.0,0.00017199,2]
[425339419,1781700662000,-152.0,0.000172,2]
[425339420,1781700662000,-320.0,0.000172,2]
[425339412,1781700662000,-152.0,0.000172,2]
[425339411,1781700662000,-315.0,0.000172,2]
[425339414,1781700662000,-316.0,0.000172,2]
[425339415,1781700662000,-151.0,0.000172,2]
[425339405,1781700662000,-319.0,0.000172,2]
[425339392,1781700662000,-300.73938948,0.00017199,2]
[425339383,1781700662000,-500.0,0.00016438,2]
[425339394,1781700662000,-500.0,0.00017199,2]
[425339362,1781700662000,-321.0,0.00016294,2]
[425339361,1781700662000,-150.0,0.00016293,2]
[425339372,1781700662000,-320.0,0.00016294,2]
[425339367,1781700662000,-151.0,0.00016294,2]
[425339363,1781700662000,-313.0,0.00016294,2]
[425339365,1781700662000,-313.0,0.00016294,2]
[425339368,1781700662000,-320.0,0.00016294,2]
[425339366,1781700662000,-309.0,0.00016294,2]
[425339369,1781700662000,-311.0,0.00016294,2]
[425339364,1781700662000,-150.0,0.00016294,2]
[425339371,1781700662000,-150.0,0.00016294,2]
[425339370,1781700662000,-310.0,0.00016294,2]
[425339379,1781700662000,-314.0,0.00016294,2]
[425339384,1781700662000,-426.26255321,0.00016438,2]
[425339375,1781700662000,-310.0,0.00016294,2]
[425339376,1781700662000,-318.0,0.00016294,2]
[425339385,1781700662000,-500.0,0.00016438,2]
[425339373,1781700662000,-311.0,0.00016294,2]
[425339380,1781700662000,-320.0,0.00016294,2]
[425339374,1781700662000,-150.0,0.00016294,2]
[425339381,1781700662000,-216.17170803,0.000163,2]
[425339416,1781700662000,-312.0,0.000172,2]
[425339378,1781700662000,-150.0,0.00016294,2]
[425339377,1781700662000,-311.0,0.00016294,2]
[425339397,1781700662000,-160.25219299,0.00017199,2]
[425339386,1781700662000,-600.0,0.00016619,2]
[425339387,1781700662000,-250.0,0.00016619,2]
[425339389,1781700662000,-500.0,0.00017199,2]
[425339413,1781700662000,-316.0,0.000172,2]
[425339396,1781700662000,-269.99908432,0.00017199,2]
[425339423,1781700662000,-314.0,0.000172,2]
[425339456,1781700662000,-317.0,0.00017236,2]
[425339457,1781700662000,-315.0,0.00017259,2]
[425339451,1781700662000,-320.0,0.00017203,2]
[425339460,1781700662000,-309.0,0.00017405,2]
[425339471,1781700662000,-152.39364804,0.00019,2]
[425339465,1781700662000,-318.0,0.00017774,2]
[425339461,1781700662000,-309.0,0.00017405,2]
[425339463,1781700662000,-153.0,0.00017487,2]
[425339464,1781700662000,-314.0,0.00017774,2]
[425339468,1781700662000,-309.0,0.00018836,2]
[425339467,1781700662000,-166.66,0.00018551,2]
[425339459,1781700662000,-160.0,0.00017265,2]
[425339462,1781700662000,-624.19747981,0.00017474,2]
[425339469,1781700662000,-166.66,0.00018942,2]
[425339470,1781700662000,-1852.36,0.00019,2]
[425339466,1781700662000,-151.0,0.0001841,2]
[425339477,1781700662000,-156.0,0.0002,2]
[425339476,1781700662000,-290.45,0.0001992,2]
[425339480,1781700662000,-236.0,0.0002,2]
[425339478,1781700662000,-151.0,0.0002,2]
[425339479,1781700662000,-358.0,0.0002,2]
[425339481,1781700662000,-162.8,0.00020056,2]
[425339475,1781700662000,-150.0,0.00019901,2]
[425339472,1781700662000,-166.66,0.00019332,2]
[425339473,1781700662000,-166.66,0.00019723,2]
[425339482,1781700662000,-200.0,0.00020087,2]
[425339431,1781700662000,-317.0,0.000172,2]
[425339450,1781700662000,-150.0,0.00017203,2]
[425339452,1781700662000,-318.0,0.00017203,2]
[425339474,1781700662000,-429.53943478,0.00019901,2]
[425339458,1781700662000,-152.0,0.00017262,2]
[425339424,1781700662000,-317.0,0.000172,2]
[425339425,1781700662000,-152.0,0.000172,2]
[425339422,1781700662000,-152.0,0.000172,2]
[425339426,1781700662000,-315.0,0.000172,2]
[425339428,1781700662000,-310.0,0.000172,2]
[425339429,1781700662000,-150.0,0.000172,2]
[425339432,1781700662000,-151.0,0.000172,2]
[425339433,1781700662000,-314.0,0.000172,2]
[425339430,1781700662000,-313.0,0.000172,2]
[425339427,1781700662000,-318.0,0.000172,2]
[425339436,1781700662000,-151.0,0.000172,2]
[425339440,1781700662000,-314.0,0.000172,2]
[425339449,1781700662000,-313.0,0.00017201,2]
[425339439,1781700662000,-151.0,0.000172,2]
[425339437,1781700662000,-317.0,0.000172,2]
[425339434,1781700662000,-319.0,0.000172,2]
[425339454,1781700662000,-151.0,0.00017213,2]
[425339455,1781700662000,-313.0,0.00017236,2]
[425339448,1781700662000,-151.0,0.000172,2]
[425339438,1781700662000,-316.0,0.000172,2]
[425339447,1781700662000,-316.0,0.000172,2]
[425339446,1781700662000,-315.0,0.000172,2]
[425339453,1781700662000,-312.0,0.00017211,2]
[425339444,1781700662000,-163.71,0.000172,2]
[425339443,1781700662000,-151.0,0.000172,2]
[425339441,1781700662000,-152.0,0.000172,2]
[425339442,1781700662000,-500.0,0.000172,2]
[425339435,1781700662000,-313.0,0.000172,2]
[425339445,1781700662000,-310.0,0.000172,2]
[425339483,1781700663000,-166.66,0.00020113,2]
[425339484,1781700663000,-645.28,0.00020145,2]
[425339488,1781700663000,-246.88946638,0.000205,2]
[425339485,1781700663000,-9999.99,0.00020145,2]
[425339492,1781700663000,-246.88946638,0.000209,2]
[425339486,1781700663000,-150.0,0.00020209,2]
[425339489,1781700663000,-166.66,0.00020504,2]
[425339494,1781700663000,-908.56446495,0.0002095,2]
[425339491,1781700663000,-162.8,0.00020725,2]
[425339493,1781700663000,-91.43553505,0.0002095,2]
[425339490,1781700663000,-246.88946638,0.000207,2]
[425339487,1781700663000,-151.0,0.00020381,2]
[425339495,1781700663000,-474.89559585,0.00020951,2]
[425339510,1781700664000,-162.8,0.00021393,2]
[425339513,1781700664000,-500.0,0.00021544,2]
[425339514,1781700664000,-395.67943243,0.00021623,2]
[425339506,1781700664000,-246.88946638,0.000211,2]
[425339512,1781700664000,-500.0,0.00021544,2]
[425339509,1781700664000,-272.42,0.00021392,2]
[425339508,1781700664000,-9138.44,0.00021273,2]
[425339515,1781700664000,-175.37,0.00021772,2]
[425339505,1781700664000,-236.0,0.00021,2]
[425339502,1781700664000,-159.86406734,0.00021,2]